fUST/lending_fUST_20250828
["ID","MTS","AMOUNT","RATE_DAILY","PERIOD"]
[381826684,1756360245561,-480.0,0.00020443,2]
[381826686,1756360245571,-2780.68,0.00020443,2]
[381826688,1756360245581,-783.11,0.00020443,2]
[381826690,1756360245590,-480.0,0.00020443,2]
[381826692,1756360245599,-1036.62,0.00020443,2]
[381826694,1756360245609,-480.0,0.00020443,2]
[381826696,1756360245619,-776.12,0.00020443,2]
[381826698,1756360245628,-480.0,0.00020443,2]
[381826700,1756360245637,-973.21,0.00020443,2]
[381826702,1756360245647,-480.0,0.00020443,2]
[381826704,1756360245657,-480.0,0.00020443,2]
[381826706,1756360245666,-480.0,0.00020443,2]
[381826708,1756360245675,-1065.53,0.00020443,2]
[381826710,1756360245684,-1236.93,0.00020443,2]
[381826713,1756360245694,-480.0,0.00020443,2]
[381826715,1756360245703,-480.0,0.00020443,2]
[381826717,1756360245713,-481.22,0.00020443,2]
[381826719,1756360245722,-805.65,0.00020443,2]
[381826721,1756360245731,-480.0,0.00020444,2]
[381826722,1756360245740,-480.0,0.00020444,2]
[381826724,1756360245749,-480.0,0.00020444,2]
[381826726,1756360245759,-480.0,0.00020444,2]
[381826728,1756360245768,-480.0,0.00020444,2]
[381826730,1756360245777,-480.0,0.00020444,2]
[381826732,1756360245787,-877.55,0.00020444,2]
[381826735,1756360245796,-598.07,0.00020444,2]
[381826736,1756360245807,-480.0,0.00020444,2]
[381826739,1756360245818,-480.0,0.00020444,2]
[381826741,1756360245828,-480.0,0.00020444,2]
[381826742,1756360245838,-480.0,0.00020444,2]
[381826745,1756360245848,-480.0,0.00020444,2]
[381826747,1756360245857,-494.31,0.00020444,2]
[381826748,1756360245867,-561.47,0.00020444,2]
[381826751,1756360245876,-480.0,0.00020444,2]
[381826752,1756360245886,-480.0,0.00020444,2]
[381826754,1756360245895,-480.0,0.00020444,2]
[381826757,1756360245906,-480.0,0.00020444,2]
[381826758,1756360245915,-480.0,0.00020444,2]
[381826761,1756360245925,-480.0,0.00020444,2]
[381826763,1756360245934,-480.0,0.00020444,2]
[381826764,1756360245944,-552.11,0.00020444,2]
[381826767,1756360245955,-480.0,0.00020444,2]
[381826768,1756360245964,-480.0,0.00020444,2]
[381826771,1756360245974,-480.0,0.00020444,2]
[381826773,1756360245983,-739.86,0.00020444,2]
[381826775,1756360245993,-480.0,0.00020444,2]
[381826777,1756360246002,-480.0,0.00020444,2]
[381826779,1756360246011,-480.0,0.00020444,2]
[381826780,1756360246021,-601.26,0.00020444,2]
[381826782,1756360246030,-689.28,0.00020444,2]
[381826784,1756360246039,-480.0,0.00020444,2]
[381826786,1756360246049,-480.0,0.00020444,2]
[381826788,1756360246058,-789.16,0.00020444,2]
[381826790,1756360246067,-760.16,0.00020444,2]
[381826792,1756360246077,-480.0,0.00020444,2]
[381826794,1756360246086,-480.0,0.00020444,2]
[381826796,1756360246096,-480.0,0.00020444,2]
[381826798,1756360246105,-480.0,0.00020444,2]
[381826800,1756360246114,-480.0,0.00020444,2]
[381826802,1756360246125,-480.0,0.00020444,2]
[381826804,1756360246134,-480.0,0.00020444,2]
[381826807,1756360246144,-480.0,0.00020444,2]
[381826808,1756360246153,-480.0,0.00020444,2]
[381826810,1756360246163,-480.0,0.00020444,2]
[381826812,1756360246172,-480.0,0.00020444,2]
[381826814,1756360246182,-480.0,0.00020444,2]
[381826816,1756360246191,-480.0,0.00020444,2]
[381826818,1756360246201,-480.0,0.00020444,2]
[381826821,1756360246210,-480.0,0.00020444,2]
[381826823,1756360246220,-480.0,0.00020444,2]
[381826825,1756360246230,-480.0,0.00020444,2]
[381826827,1756360246239,-480.0,0.00020444,2]
[381826829,1756360246249,-480.0,0.00020444,2]
[381826831,1756360246257,-480.0,0.00020444,2]
[381826832,1756360246267,-480.0,0.00020444,2]
[381826834,1756360246276,-644.36,0.00020444,2]
[381826836,1756360246285,-480.0,0.00020444,2]
[381826838,1756360246295,-480.0,0.00020444,2]
[381826840,1756360246305,-480.0,0.00020444,2]
[381826842,1756360246316,-480.0,0.00020444,2]
[381826844,1756360246327,-480.0,0.00020444,2]
[381826846,1756360246336,-480.0,0.00020444,2]
[381826848,1756360246346,-480.0,0.00020444,2]
[381826850,1756360246355,-480.0,0.00020444,2]
[381826852,1756360246366,-480.0,0.00020444,2]
[381826854,1756360246375,-480.0,0.00020444,2]
[381826856,1756360246384,-480.0,0.00020444,2]
[381826859,1756360246395,-480.0,0.00020444,2]
[381826861,1756360246404,-552.24,0.00020444,2]
[381826863,1756360246414,-480.0,0.00020444,2]
[381826865,1756360246423,-1133.25,0.00020444,2]
[381826867,1756360246432,-480.0,0.00020444,2]
[381826868,1756360246441,-347.02050352,0.00020444,2]
[381826870,1756360246450,-480.0,0.00020444,2]
[381826872,1756360246459,-578.92,0.00020444,2]
[381826873,1756360246468,-480.0,0.00020444,2]
[381826874,1756360246478,-480.0,0.00020444,2]
[381826875,1756360246487,-480.0,0.00020444,2]
[381826876,1756360246496,-553.25,0.00020444,2]
[381826877,1756360246507,-480.0,0.00020444,2]
[381826878,1756360246516,-480.0,0.00020444,2]
[381826879,1756360246525,-480.0,0.00020444,2]
[381826880,1756360246535,-480.0,0.00020444,2]
[381826881,1756360246545,-480.0,0.00020444,2]
[381826882,1756360246554,-481.87488358,0.00020444,2]
[381826884,1756360246563,-627.65,0.00020444,2]
[381826886,1756360246573,-500.0,0.00020444,2]
[381826888,1756360246582,-480.0,0.00020444,2]
[381826890,1756360246591,-480.0,0.00020444,2]
[381826892,1756360246601,-480.0,0.00020444,2]
[381826894,1756360246611,-480.0,0.00020444,2]
[381826896,1756360246620,-480.0,0.00020444,2]
[381826898,1756360246629,-480.0,0.00020444,2]
[381826900,1756360246639,-863.53,0.00020444,2]
[381826902,1756360246648,-480.0,0.00020444,2]
[381826904,1756360246658,-830.18,0.00020444,2]
[381826906,1756360246667,-531.34,0.00020444,2]
[381826908,1756360246676,-480.0,0.00020444,2]
[381826910,1756360246685,-480.0,0.00020444,2]
[381826912,1756360246694,-480.0,0.00020444,2]
[381826914,1756360246703,-480.0,0.00020444,2]
[381826916,1756360246713,-480.0,0.00020444,2]
[381826918,1756360246722,-480.0,0.00020444,2]
[381826920,1756360246731,-480.0,0.00020444,2]
[381826922,1756360246740,-314.36429447,0.00020444,2]
[381826924,1756360246750,-480.0,0.00020444,2]
[381826925,1756360246759,-597.86,0.00020444,2]
[381826927,1756360246768,-633.86,0.00020444,2]
[381826929,1756360246778,-480.0,0.00020444,2]
[381826931,1756360246787,-511.06,0.00020444,2]
[381826933,1756360246796,-480.0,0.00020444,2]
[381826935,1756360246805,-480.0,0.00020444,2]
[381826937,1756360246815,-480.0,0.00020444,2]
[381826939,1756360246824,-480.0,0.00020444,2]
[381826941,1756360246833,-480.0,0.00020444,2]
[381826943,1756360246843,-480.0,0.00020444,2]
[381826945,1756360246852,-370.58135829,0.00020444,2]
[381826947,1756360246861,-480.0,0.00020444,2]
[381826949,1756360246871,-480.0,0.00020444,2]
[381826951,1756360246880,-480.0,0.00020444,2]
[381826953,1756360246889,-480.0,0.00020444,2]
[381826955,1756360246899,-480.0,0.00020444,2]
[381826957,1756360246909,-589.64,0.00020444,2]
[381826959,1756360246918,-480.0,0.00020444,2]
[381826961,1756360246927,-480.0,0.00020444,2]
[381826963,1756360246937,-759.06,0.00020444,2]
[381826965,1756360246947,-507.7,0.00020444,2]
[381826967,1756360246956,-607.68,0.00020444,2]
[381826969,1756360246965,-480.0,0.00020444,2]
[381826971,1756360246974,-480.0,0.00020444,2]
[381826973,1756360246983,-480.0,0.00020444,2]
[381826975,1756360246992,-749.69,0.00020444,2]
[381826977,1756360247002,-480.0,0.00020444,2]
[381826979,1756360247011,-480.0,0.00020444,2]
[381826981,1756360247020,-494.37,0.00020444,2]
[381826983,1756360247029,-480.0,0.00020444,2]
[381826984,1756360247039,-480.0,0.00020444,2]
[381826986,1756360247048,-480.0,0.00020444,2]
[381826989,1756360247058,-480.0,0.00020444,2]
[381826990,1756360247067,-480.0,0.00020444,2]
[381826992,1756360247077,-566.01,0.00020444,2]
[381826994,1756360247087,-580.84,0.00020444,2]
[381826996,1756360247096,-480.0,0.00020444,2]
[381826998,1756360247105,-480.0,0.00020444,2]
[381827000,1756360247114,-480.0,0.00020444,2]
[381827002,1756360247123,-480.0,0.00020444,2]
[381827004,1756360247133,-186.34,0.00020444,2]
[381827006,1756360247143,-872.45,0.00020444,2]
[381827008,1756360247152,-480.0,0.00020444,2]
[381827010,1756360247161,-480.0,0.00020444,2]
[381827012,1756360247171,-480.0,0.00020444,2]
[381827014,1756360247180,-495.58,0.00020444,2]
[381827016,1756360247189,-558.11,0.00020444,2]
[381827018,1756360247199,-490.45,0.00020444,2]
[381827020,1756360247209,-961.11,0.00020444,2]
[381827022,1756360247218,-480.0,0.00020444,2]
[381827024,1756360247227,-480.0,0.00020444,2]
[381827026,1756360247237,-480.0,0.00020444,2]
[381827028,1756360247246,-480.0,0.00020444,2]
[381827030,1756360247256,-397.09743553,0.00020444,2]
[381827032,1756360247265,-480.0,0.00020444,2]
[381827034,1756360247274,-480.0,0.00020444,2]
[381827036,1756360247283,-480.0,0.00020444,2]
[381827038,1756360247293,-480.0,0.00020444,2]
[381827040,1756360247302,-497.09,0.00020444,2]
[381827042,1756360247311,-483.59697002,0.00020444,2]
[381827044,1756360247326,-480.0,0.00020444,2]
[381827046,1756360247335,-480.0,0.00020444,2]
[381827048,1756360247344,-403.05224676,0.00020444,2]
[381827050,1756360247353,-506.94,0.00020444,2]
[381827052,1756360247364,-480.0,0.00020444,2]
[381827054,1756360247373,-480.0,0.00020444,2]
[381827056,1756360247383,-480.0,0.00020444,2]
[381827058,1756360247393,-480.0,0.00020444,2]
[381827060,1756360247402,-480.0,0.00020444,2]
[381827062,1756360247412,-480.0,0.00020444,2]
[381827064,1756360247421,-480.0,0.00020444,2]
[381827066,1756360247430,-612.69,0.00020444,2]
[381827068,1756360247440,-480.0,0.00020444,2]
[381827070,1756360247449,-592.9,0.00020444,2]
[381827072,1756360247458,-4807.37,0.00020445,2]
[381827074,1756360247467,-572.42,0.00020445,2]
[381827075,1756360247476,-627.35,0.00020445,2]
[381827077,1756360247486,-1284.83,0.00020445,2]
[381827079,1756360247495,-201.82760092,0.00020447,2]
[381827081,1756360247505,-613.3,0.00020447,2]
[381827083,1756360247514,-480.0,0.00020447,2]
[381827085,1756360247523,-480.0,0.00020447,2]
[381827087,1756360247533,-480.0,0.00020447,2]
[381827089,1756360247542,-480.0,0.00020447,2]
[381827091,1756360247551,-480.0,0.00020447,2]
[381827093,1756360247561,-480.0,0.00020447,2]
[381827095,1756360247571,-480.0,0.00020447,2]
[381827097,1756360247580,-480.0,0.00020447,2]
[381827099,1756360247589,-480.0,0.00020447,2]
[381827101,1756360247598,-480.0,0.00020447,2]
[381827103,1756360247608,-480.0,0.00020447,2]
[381827105,1756360247618,-480.0,0.00020447,2]
[381827107,1756360247627,-480.0,0.00020447,2]
[381827109,1756360247636,-480.0,0.00020447,2]
[381827111,1756360247645,-482.6007025,0.00020447,2]
[381827113,1756360247655,-480.0,0.00020447,2]
[381827115,1756360247664,-480.0,0.00020447,2]
[381827117,1756360247674,-480.0,0.00020447,2]
[381827119,1756360247683,-480.0,0.00020447,2]
[381827121,1756360247692,-480.0,0.00020447,2]
[381827123,1756360247701,-480.0,0.00020447,2]
[381827125,1756360247711,-480.0,0.00020447,2]
[381827127,1756360247720,-480.0,0.00020447,2]
[381827129,1756360247730,-480.0,0.00020447,2]
[381827131,1756360247740,-652.1,0.00020447,2]
[381827133,1756360247749,-179.11423784,0.00020447,2]
[381827136,1756360247758,-480.0,0.00020447,2]
[381827138,1756360247768,-1220.4,0.00020447,2]
[381827140,1756360247778,-480.0,0.00020447,2]
[381827142,1756360247787,-480.0,0.00020447,2]
[381827144,1756360247797,-552.79837292,0.00020447,2]
[381827146,1756360247806,-483.11412698,0.00020447,2]
[381827148,1756360247815,-480.0,0.00020447,2]
[381827150,1756360247825,-2226.66,0.00020447,2]
[381827152,1756360247834,-480.0,0.00020447,2]
[381827154,1756360247844,-480.0,0.00020447,2]
[381827156,1756360247853,-480.0,0.00020447,2]
[381827158,1756360247863,-480.0,0.00020447,2]
[381827160,1756360247872,-1263.94,0.00020458,2]
[381827162,1756360247886,-480.0,0.00020458,2]
[381827164,1756360247896,-543.43,0.00020458,2]
[381827166,1756360247906,-2237.3,0.00020458,2]
[381827168,1756360247915,-595.29,0.00020458,2]
[381827170,1756360247925,-1352.58,0.00020458,2]
[381827172,1756360247934,-480.0,0.00020458,2]
[381827174,1756360247944,-480.0,0.00020459,2]
[381827176,1756360247954,-3283.72,0.00020459,2]
[381827179,1756360247964,-480.0,0.00020459,2]
[381827181,1756360247974,-1080.65,0.00020459,2]
[381827183,1756360247984,-20319.02714124,0.00020468,2]
[381827185,1756360247993,-500.0,0.00020473,2]
[381827187,1756360248003,-500.0,0.00020473,2]
[381827189,1756360248013,-500.0,0.00020473,2]
[381827191,1756360248022,-160.0,0.00020482,2]
[381827193,1756360248032,-151.0,0.000205,4]
[381827195,1756360248042,-151.0,0.000205,4]
[381827197,1756360248052,-151.0,0.000205,3]
[381827199,1756360248061,-521.27844188,0.00020512,2]
[381827201,1756360248070,-480.0,0.00020518,2]
[381827203,1756360248080,-485.11,0.00020518,2]
[381827205,1756360248090,-480.0,0.00020518,2]
[381827207,1756360248099,-516.29,0.00020518,2]
[381827209,1756360248109,-742.52,0.00020518,2]
[381827211,1756360248119,-480.0,0.00020518,2]
[381827213,1756360248129,-1126.84,0.00020518,2]
[381827215,1756360248139,-622.52,0.00020518,2]
[381827217,1756360248148,-480.0,0.00020518,2]
[381827219,1756360248158,-392.37817458,0.00020518,2]
[381827221,1756360248168,-480.0,0.00020518,2]
[381827223,1756360248178,-488.4,0.00020518,2]
[381827225,1756360248188,-498.41,0.00020518,2]
[381827227,1756360248198,-506.08,0.00020518,2]
[381827229,1756360248208,-588.96,0.00020518,2]
[381827231,1756360248218,-480.0,0.00020518,2]
[381827233,1756360248228,-480.0,0.00020518,2]
[381827235,1756360248238,-480.0,0.00020518,2]
[381827237,1756360248248,-1126.71,0.00020518,2]
[381827239,1756360248257,-581.01,0.00020518,2]
[381827241,1756360248267,-711.65,0.00020518,2]
[381827243,1756360248276,-804.65,0.00020518,2]
[381827245,1756360248286,-480.0,0.00020518,2]
[381827247,1756360248295,-619.66,0.00020518,2]
[381827249,1756360248305,-480.0,0.00020518,2]
[381827251,1756360248316,-480.0,0.00020518,2]
[381827253,1756360248327,-480.0,0.00020518,2]
[381827255,1756360248336,-480.0,0.00020518,2]
[381827257,1756360248346,-480.0,0.00020518,2]
[381827259,1756360248356,-480.0,0.00020518,2]
[381827261,1756360248365,-480.0,0.00020518,2]
[381827263,1756360248375,-480.0,0.00020518,2]
[381827265,1756360248385,-480.0,0.00020518,2]
[381827267,1756360248395,-1095.85,0.00020518,2]
[381827270,1756360248406,-480.0,0.00020518,2]
[381827272,1756360248416,-480.0,0.00020518,2]
[381827274,1756360248426,-480.0,0.00020518,2]
[381827276,1756360248436,-657.23,0.00020518,2]
[381827278,1756360248446,-577.14,0.00020518,2]
[381827280,1756360248456,-512.38,0.00020518,2]
[381827282,1756360248466,-593.21,0.00020518,2]
[381827284,1756360248476,-738.2,0.00020518,2]
[381827286,1756360248486,-480.0,0.00020518,2]
[381827288,1756360248496,-480.0,0.00020518,2]
[381827290,1756360248505,-480.0,0.00020518,2]
[381827292,1756360248515,-480.0,0.00020518,2]
[381827294,1756360248525,-480.0,0.00020518,2]
[381827296,1756360248534,-1041.99,0.00020518,2]
[381827298,1756360248544,-480.0,0.00020518,2]
[381827300,1756360248553,-776.36,0.00020518,2]
[381827302,1756360248563,-480.0,0.00020518,2]
[381827304,1756360248573,-955.85,0.00020518,2]
[381827306,1756360248583,-480.0,0.00020518,2]
[381827308,1756360248593,-1183.13,0.00020518,2]
[381827310,1756360248602,-1165.26,0.00020518,2]
[381827312,1756360248612,-480.0,0.00020518,2]
[381827314,1756360248621,-480.0,0.00020518,2]
[381827316,1756360248631,-504.03,0.00020518,2]
[381827318,1756360248641,-480.0,0.00020518,2]
[381827320,1756360248650,-480.0,0.00020518,2]
[381827321,1756360248661,-483.89,0.00020518,2]
[381827322,1756360248670,-1554.31,0.00020518,2]
[381827323,1756360248680,-480.0,0.00020518,2]
[381827324,1756360248691,-488.46,0.00020518,2]
[381827325,1756360248701,-480.0,0.00020518,2]
[381827326,1756360248710,-799.57,0.00020518,2]
[381827327,1756360248720,-603.48,0.00020518,2]
[381827328,1756360248730,-749.04,0.00020518,2]
[381827329,1756360248739,-480.0,0.00020518,2]
[381827330,1756360248750,-480.0,0.00020518,2]
[381827331,1756360248759,-480.0,0.00020518,2]
[381827332,1756360248770,-480.0,0.00020518,2]
[381827333,1756360248780,-3343.29,0.00020518,2]
[381827334,1756360248790,-480.0,0.00020518,2]
[381827335,1756360248800,-480.0,0.00020518,2]
[381827336,1756360248810,-954.9,0.00020518,2]
[381827337,1756360248820,-649.03,0.00020518,2]
[381827338,1756360248830,-1716.38,0.00020518,2]
[381827339,1756360248839,-739.24,0.00020518,2]
[381827340,1756360248849,-1000.0,0.00020521,2]
[381827341,1756360248859,-1000.0,0.00020521,2]
[381827342,1756360248869,-1000.92900037,0.00020521,2]
[381827343,1756360248879,-1000.0,0.00020521,2]
[381827344,1756360248889,-1000.0,0.00020521,2]
[381827346,1756360248899,-1000.0,0.00020521,2]
[381827347,1756360248908,-1000.0,0.00020521,2]
[381827349,1756360248918,-1000.0,0.00020521,2]
[381827351,1756360248927,-1000.0,0.00020521,2]
[381827353,1756360248937,-575.25677081,0.00020521,2]
[381827355,1756360248947,-1000.0,0.00020521,2]
[381827357,1756360248957,-1000.0,0.00020521,2]
[381827360,1756360248967,-1000.0,0.00020521,2]
[381827362,1756360248977,-253.0,0.0002053,2]
[381827364,1756360248987,-480.0,0.00020547,2]
[381827366,1756360248998,-510.63,0.00020547,2]
[381827368,1756360249008,-862.48,0.00020547,2]
[381827370,1756360249018,-1561.34,0.00020547,2]
[381827372,1756360249028,-1651.05,0.00020547,2]
[381827374,1756360249038,-1035.31,0.00020547,2]
[381827376,1756360249048,-480.0,0.00020547,2]
[381827378,1756360249057,-480.0,0.00020547,2]
[381827380,1756360249068,-480.0,0.00020547,2]
[381827382,1756360249078,-1578.11,0.00020547,2]
[381827384,1756360249088,-253.0,0.00020552,2]
[381827385,1756360249097,-1200.0,0.00020558,2]
[381827388,1756360249107,-4346.51508548,0.0002056,2]
[381827390,1756360249117,-420.0,0.00020577,2]
[381827392,1756360249127,-151.0,0.000206,4]
[381827394,1756360249137,-151.0,0.000206,4]
[381827396,1756360249146,-151.0,0.000206,4]
[381827398,1756360249156,-151.0,0.000206,3]
[381827400,1756360249168,-838.67,0.00020617,2]
[381827402,1756360249178,-2303.62,0.00020617,2]
[381827404,1756360249188,-1695.66,0.00020617,2]
[381827406,1756360249198,-480.0,0.00020617,2]
[381827408,1756360249208,-480.0,0.00020617,2]
[381827410,1756360249218,-480.0,0.00020617,2]
[381827412,1756360249228,-480.0,0.00020617,2]
[381827414,1756360249239,-480.0,0.00020617,2]
[381827416,1756360249248,-173.66815184,0.00020631,2]
[381827418,1756360249258,-1707.88272962,0.00020648,2]
[381827420,1756360249268,-253.0,0.00020664,2]
[381827422,1756360249278,-97351.7489586,0.000207,2]
[381827424,1756360249288,-151.0,0.000207,3]
[381827426,1756360249297,-151.0,0.000207,3]
[381827428,1756360249307,-576.61,0.00020716,2]
[381827430,1756360249319,-723.33,0.00020716,2]
[381827431,1756360249329,-480.0,0.00020716,2]
[381827432,1756360249339,-480.0,0.00020717,2]
[381827433,1756360249348,-2780.68,0.00020717,2]
[381827434,1756360249359,-783.11,0.00020717,2]
[381827435,1756360249369,-480.0,0.00020717,2]
[381827436,1756360249378,-1036.62,0.00020717,2]
[381827437,1756360249388,-480.0,0.00020717,2]
[381827438,1756360249398,-776.12,0.00020717,2]
[381827439,1756360249409,-480.0,0.00020717,2]
[381827440,1756360249418,-973.21,0.00020717,2]
[381827441,1756360249428,-480.0,0.00020717,2]
[381827442,1756360249438,-480.0,0.00020717,2]
[381827443,1756360249448,-480.0,0.00020717,2]
[381827444,1756360249458,-1065.53,0.00020717,2]
[381827445,1756360249468,-1236.93,0.00020717,2]
[381827446,1756360249478,-480.0,0.00020717,2]
[381827447,1756360249487,-480.0,0.00020717,2]
[381827448,1756360249498,-481.22,0.00020717,2]
[381827449,1756360249508,-805.65,0.00020717,2]
[381827451,1756360249518,-480.0,0.00020718,2]
[381827454,1756360249528,-480.0,0.00020718,2]
[381827456,1756360249539,-217.92505324,0.00020718,2]
[381827458,1756360249549,-480.0,0.00020718,2]
[381827460,1756360249559,-480.0,0.00020718,2]
[381827461,1756360249568,-480.0,0.00020718,2]
[381827463,1756360249578,-877.55,0.00020718,2]
[381827465,1756360249587,-598.07,0.00020718,2]
[381827467,1756360249597,-480.0,0.00020718,2]
[381827469,1756360249607,-480.0,0.00020718,2]
[381827471,1756360249617,-480.0,0.00020718,2]
[381827472,1756360249626,-480.0,0.00020718,2]
[381827473,1756360249635,-494.31,0.00020718,2]
[381827474,1756360249645,-561.47,0.00020718,2]
[381827475,1756360249653,-480.0,0.00020718,2]
[381827476,1756360249662,-480.0,0.00020718,2]
[381827477,1756360249671,-480.0,0.00020718,2]
[381827478,1756360249679,-480.0,0.00020718,2]
[381827479,1756360249688,-480.0,0.00020718,2]
[381827480,1756360249698,-480.0,0.00020718,2]
[381827482,1756360249708,-552.11,0.00020718,2]
[381827484,1756360249718,-482.67213805,0.00020718,2]
[381827486,1756360249728,-480.0,0.00020718,2]
[381827488,1756360249738,-739.86,0.00020718,2]
[381827490,1756360249748,-480.0,0.00020718,2]
[381827492,1756360249758,-480.0,0.00020718,2]
[381827494,1756360249769,-601.26,0.00020718,2]
[381827496,1756360249779,-689.28,0.00020718,2]
[381827498,1756360249789,-480.0,0.00020718,2]
[381827500,1756360249799,-480.0,0.00020718,2]
[381827502,1756360249808,-789.16,0.00020718,2]
[381827505,1756360249818,-760.16,0.00020718,2]
[381827507,1756360249828,-480.0,0.00020718,2]
[381827509,1756360249838,-480.0,0.00020718,2]
[381827511,1756360249848,-480.0,0.00020718,2]
[381827513,1756360249857,-480.0,0.00020718,2]
[381827515,1756360249866,-480.0,0.00020718,2]
[381827517,1756360249876,-480.0,0.00020718,2]
[381827519,1756360249886,-480.0,0.00020718,2]
[381827521,1756360249896,-480.0,0.00020718,2]
[381827548,1756360250166,-480.0,0.00020718,2]
[381827549,1756360250179,-480.0,0.00020718,2]
[381827550,1756360250189,-480.0,0.00020718,2]
[381827551,1756360250199,-480.0,0.00020718,2]
[381827552,1756360250209,-482.33775518,0.00020718,2]
[381827553,1756360250218,-303.04470267,0.00020718,2]
[381827554,1756360250227,-297.13094542,0.00020718,2]
[381827555,1756360250237,-480.0,0.00020718,2]
[381827556,1756360250246,-480.0,0.00020718,2]
[381827557,1756360250256,-480.0,0.00020718,2]
[381827558,1756360250266,-480.0,0.00020718,2]
[381827559,1756360250275,-644.36,0.00020718,2]
[381827560,1756360250285,-480.0,0.00020718,2]
[381827561,1756360250294,-480.0,0.00020718,2]
[381827562,1756360250304,-441.32763352,0.00020718,2]
[381827582,1756360250564,-146.48242565,0.00020718,2]
[381827584,1756360250574,-122.13679257,0.00020718,2]
[381827586,1756360250592,-432.30127353,0.00020718,2]
[381827588,1756360250602,-321.89271404,0.00020718,2]
[381827590,1756360250611,-480.0,0.00020718,2]
[381827593,1756360250621,-480.0,0.00020718,2]
[381827594,1756360250631,-480.0,0.00020718,2]
[381827596,1756360250640,-441.34202101,0.00020718,2]
[381827599,1756360250650,-552.24,0.00020718,2]
[381827600,1756360250660,-430.24007524,0.00020718,2]
[381827616,1756360251026,-496.05,0.00019899,2]
[381827617,1756360251035,-53.63825518,0.00020718,2]
[381827618,1756360251045,-1133.25,0.00020718,2]
[381827619,1756360251055,-480.0,0.00020718,2]
[381827620,1756360251064,-480.0,0.00020718,2]
[381827621,1756360251074,-578.92,0.00020718,2]
[381827622,1756360251083,-480.0,0.00020718,2]
[381827624,1756360251094,-480.0,0.00020718,2]
[381827626,1756360251104,-221.05608177,0.00020718,2]
[381827628,1756360251113,-553.25,0.00020718,2]
[381827630,1756360251123,-480.0,0.00020718,2]
[381827632,1756360251133,-480.0,0.00020718,2]
[381827634,1756360251142,-480.0,0.00020718,2]
[381827636,1756360251151,-480.0,0.00020718,2]
[381827637,1756360251160,-480.0,0.00020718,2]
[381827639,1756360251170,-627.65,0.00020718,2]
[381827641,1756360251179,-500.0,0.00020718,2]
[381827643,1756360251189,-480.0,0.00020718,2]
[381827645,1756360251198,-480.0,0.00020718,2]
[381827647,1756360251208,-480.0,0.00020718,2]
[381827649,1756360251218,-480.0,0.00020718,2]
[381827651,1756360251227,-480.0,0.00020718,2]
[381827653,1756360251236,-863.53,0.00020718,2]
[381827655,1756360251246,-830.18,0.00020718,2]
[381827657,1756360251256,-531.34,0.00020718,2]